Cogmind - Beta 13 X2 @@@ ROGUE MODE // 2024.01.08 @ 23:12:41 Player: Boris Result: Exoskeleton Destroyed Performance ------------- Evolutions (9) 4500 Regions Visited (31) 6200 Robots Destroyed (273) 1365 Value Destroyed (12527) 12527 Prototype IDs (249) 4980 Alien Tech Used (12) 2400 Bonus (38610) 38610 TOTAL SCORE: 70582 Bonus ------- Triggered Max Security 2000 High Alert Combat Kills 2952 Follower Combat Kills 636 Entered Garrisons 1000 Used RIF Installer 3000 Entered DSFs 500 Aligned with FarCom 300 Met Data Miner 300 Used Data Conduit 3000 Found Hidden Lab 3000 Decrypted A0 Command 3000 Used Core Reset Matrix 3000 Scanned by Researcher 500 Pursued by Intercept 500 Integrated Exoskeleton 5000 Destroyed MAIN.C Guards 500 Met MAIN.C 5000 Destroyed MAIN.C Shell 5000 Friendly Fire -578 Cogmind --------- Core Integrity 0/1850 Matter 50/300 Energy 288/410 System Corruption 3% Temperature Cool (7) Movement Walking (30) Location -1/Command Parts ------- > --- POWER (3) -------- Light Antimatter Reactor Zero-point Reactor > --- PROPULSION (3) --- Sigix Exoskeleton > --- UTILITY (4) ------ Experimental Coolant Injector Advanced Weapon Cycler Experimental Reaction Control System Graphene Brace > --- WEAPON (4) ------- Sigix Sheargun Sigix Sheargun Sigix Sheargun Sigix Sheargun > --- INVENTORY (7) ---- Experimental Cooling System Experimental Energy Well (600) Weapon Mount Improved System Restoration Module Hellfire Missile Launcher Peak State ------------ > --- POWER ------------ Zero-point Reactor Zero-point Reactor > --- PROPULSION ------- Sigix Exoskeleton > --- UTILITY ---------- Experimental Cooling System Advanced Weapon Cycler Experimental Reaction Control System Graphene Brace > --- WEAPON ----------- Sigix Sheargun Sigix Sheargun Sigix Sheargun Sigix Sheargun > --- INVENTORY -------- Matter Drive Experimental Energy Well Weapon Mount Hacking Suite Improved Hacking Suite Improved System Restoration Module [Rating: 264] Favorites ----------- Power Particle Reactor Engine Heavy Ion Engine Power Core Light Nuclear Core Reactor Particle Reactor Propulsion Potential Leg Treads Armored Treads Leg Potential Leg Hover Unit Cooled Airjet Flight Unit Impulse Thruster Array Utility High-capacity Storage Unit Device Structural Scanner Storage High-capacity Storage Unit Processor Advanced Targeting Computer Hackware Hacking Suite Protection Powered Armor Weapon Heavy Assault Rifle Energy Gun Gatling Laser Energy Cannon Cooled Plasma Cannon Ballistic Gun Heavy Assault Rifle Launcher Fusion Bomb Launcher Special Weapon Plasma Cutter Slashing Weapon Ripper Piercing Weapon Enhanced Force Lance Special Melee Weapon Datajack Build | -11 -10 -10 -9 -9 -9 -8 -8 -8 -8 -8 -7 -7 -7 -7 -6 -6 -6 -6 -5 -5 -5 -4 -4 -4 -3 -3 -2 -2 -2 -1 -1 ------- Run | Yrd Mat Min Mat Min Exi Min Mat Gar Mat Gar Fac Gar Fac Gar Fac Low Low Dat Pro Fac Gar Fac Arm Lab Res DSF Res Qua Sec Acc Com Slots Evolved 18 | . . . 2 . . . 2 . . . 2 . . . 2 . . . . 2 . 2 . . 2 . 2 . . 2 . Power 1 | . . . . . . . . . . . . . . . . . . . . . . . . . 1 . . . . . . Propulsion 4 | . . . . . . . 1 . . . 1 . . . . . . . . 1 . 1 . . . . . . . . . Utility 9 | . . . 1 . . . 1 . . . 1 . . . 2 . . . . . . 1 . . 1 . 2 . . . . Weapon 4 | . . . 1 . . . . . . . . . . . . . . . . 1 . . . . . . . . . 2 . Parts Attached 461 | 5 7 8 30 2 7 2 21 12 11 21 20 38 2 25 17 12 20 11 9 14 42 33 27 4 2 . 5 . 18 13 23 Power 23 | 1 1 2 6 1 . . . . . 1 . . . 1 . . 1 . . . 1 1 1 . . . . . 2 1 3 Engine 12 | 1 1 1 6 1 . . . . . 1 . . . . . . 1 . . . . . . . . . . . . . . Core 1 | . . 1 . . . . . . . . . . . . . . . . . . . . . . . . . . . . . Reactor 10 | . . . . . . . . . . . . . . 1 . . . . . . 1 1 1 . . . . . 2 1 3 Propulsion 58 | 2 1 3 10 . 2 . 4 1 1 . 1 4 . 1 2 . 3 . 3 3 9 4 3 . . . . . 1 . . Treads 15 | . . . 4 . . . 3 . . . 1 1 . . 2 . 3 . . . . 1 . . . . . . . . . Leg 38 | 2 1 3 6 . 2 . . 1 1 . . 3 . 1 . . . . 3 3 9 3 . . . . . . . . . Wheel . | . . . . . . . . . . . . . . . . . . . . . . . . . . . . . . . . Hover 1 | . . . . . . . 1 . . . . . . . . . . . . . . . . . . . . . . . . Flight 4 | . . . . . . . . . . . . . . . . . . . . . . . 3 . . . . . 1 . . Utility 203 | . 2 . 4 . . . 2 1 4 7 12 21 1 10 8 8 12 7 5 9 19 16 13 1 2 . 2 . 11 10 16 Device 134 | . . . . . . . . . 2 2 4 17 1 5 5 5 10 6 3 8 13 12 9 . 1 . 1 . 7 10 13 Storage 7 | . 1 . 2 . . . . . . . 1 . . . . . . . 2 . . . . . . . . . . . 1 Processor 13 | . 1 . 1 . . . 1 . . . 2 . . . . 1 . . . . . . 3 . . . . . 4 . . Hackware 22 | . . . 1 . . . . . . 1 2 1 . 4 3 . . . . . 3 2 1 . 1 . 1 . . . 2 Protection 27 | . . . . . . . 1 1 2 4 3 3 . 1 . 2 2 1 . 1 3 2 . 1 . . . . . . . Artifact . | . . . . . . . . . . . . . . . . . . . . . . . . . . . . . . . . Weapon 177 | 2 3 3 10 1 5 2 15 10 6 13 7 13 1 13 7 4 4 4 1 2 13 12 10 3 . . 3 . 4 2 4 Energy Gun 24 | 2 3 2 . . . . . . . . . 3 . 5 2 . . . . . . . . 1 . . . . 2 2 2 Energy Cannon 12 | . . . 1 . . . 2 . . . 1 1 . . . 1 . . 1 . . 1 3 1 . . . . . . . Ballistic Gun 74 | . . . 8 1 3 1 8 6 4 6 2 2 1 2 5 1 1 3 . 2 9 8 . . . . . . 1 . . Ballistic Cannon . | . . . . . . . . . . . . . . . . . . . . . . . . . . . . . . . . Launcher 11 | . . . . . . 1 3 2 . . . . . . . . 1 . . . . . 1 . . . . . 1 . 2 Special Weapon 15 | . . 1 . . . . 1 . . 1 . 4 . 4 . . . . . . 3 . . 1 . . . . . . . Impact Weapon . | . . . . . . . . . . . . . . . . . . . . . . . . . . . . . . . . Slashing Weapon 25 | . . . . . . . 1 2 2 5 2 2 . 1 . 2 1 . . . 1 1 2 . . . 3 . . . . Piercing Weapon 5 | . . . . . . . . . . . . . . . . . 1 1 . . . . 3 . . . . . . . . Special Melee Weapon 11 | . . . 1 . 2 . . . . 1 2 1 . 1 . . . . . . . 2 1 . . . . . . . . Unidentified Prototypes 26 | . . . 3 . . . 1 . . . . . . . . 1 . . . . . . . 7 . . . . 7 . 7 Corrupted Parts 7 | . . 2 . . . . . . . . . . . . . . . . 4 . . 1 . . . . . . . . . System Corruption 35 | . . 6 . . . . . . . . . . . . . . . . 23 . . 6 . . . . . . . . . Parts Lost 51 | . 1 1 . . . . . 2 . . . 1 . 2 2 . 2 . . 1 2 24 3 . . 1 . . 9 . . Power 3 | . . . . . . . . . . . . . . 1 . . . . . . . 2 . . . . . . . . . Propulsion 13 | . . . . . . . . . . . . 1 . . . . 2 . . . . 6 . . . . . . 4 . . Utility 17 | . . . . . . . . . . . . . . . . . . . . 1 1 7 2 . . 1 . . 5 . . Weapon 18 | . 1 1 . . . . . 2 . . . . . 1 2 . . . . . 1 9 1 . . . . . . . . Highest Loss Streak 23 | . 1 1 . . . . . 2 . . . 1 . 1 1 . 1 . . 1 1 23 3 . . 1 . . 7 . . To Critical Strikes 1 | . . . . . . . . . . . . . . . . . . . . . . 1 . . . . . . . . . Average Slot Usage (%) 94 | . 95 100 98 100 100 100 98 99 99 100 96 99 100 99 98 100 95 87 93 96 99 96 69 69 67 68 67 70 49 65 72 Engine 5 | . 14 14 10 11 11 11 9 9 9 9 7 7 7 3 . . 5 6 6 5 . . . . . . . . . . . Reactor 1 | . . . . . . . . . . . . . . 3 6 6 . . . . 4 4 4 5 4 4 4 4 4 7 8 Treads 6 | . . . 4 22 16 . 8 4 . . 3 4 7 7 5 6 13 20 20 12 . . . . . . . . . . . Leg 16 | . 27 28 17 . 5 22 18 22 27 27 23 24 23 23 20 20 7 . . 12 28 28 . . . . . . 6 7 7 Device 7 | . . . . . . . . . 5 1 1 5 7 5 3 19 19 17 19 16 9 10 15 15 16 18 15 16 10 17 27 Storage 7 | . 13 14 11 11 11 11 9 9 9 9 7 7 7 7 6 6 6 6 6 5 5 4 . . . . . . . . . Processor 11 | . 11 14 10 11 11 11 14 11 9 9 14 15 15 15 9 12 13 13 13 11 11 10 12 15 10 9 8 8 10 6 . Hackware 8 | . . . 10 11 11 11 9 9 9 9 10 7 7 7 25 6 6 6 6 2 9 10 8 5 8 9 11 12 1 . . Protection 1 | . . . . . . . 2 6 2 7 2 1 . . . . . 1 . 1 2 2 . . 4 4 4 4 . . . Energy Gun 5 | . 28 28 2 . . . . . . . . 13 15 16 8 . . . . . . . . . . . . . 12 27 27 Ballistic Gun 14 | . . . 28 33 25 32 23 24 22 22 17 5 7 1 7 14 14 6 14 21 20 13 . . . . . . . . . Slashing Weapon 1 | . . . . . . . 2 1 4 2 1 . . . . 4 4 4 . . . 4 4 . . . 8 12 1 . . Naked Turns . | . . . . . . . . . . . . . . . . . . . . . . . . . . . . . . . . Heaviest Build 94 | 7 14 14 57 57 57 60 63 61 63 70 74 74 62 73 78 87 87 82 80 88 92 94 48 47 48 48 48 48 57 55 64 Greatest Support 133 | 20 20 20 40 40 60 60 60 75 75 75 75 85 75 75 75 75 104 76 76 78 98 133 48 48 48 48 48 48 60 60 60 Greatest Overweight (x) 3 | . . . 2 1 1 . 1 1 . . . 1 . . 1 1 3 1 1 1 1 2 1 . . . . . . . 1 Average Overweight (x) . | . . . . 1 . . . . . . . . . . . . . . . . . . . . . . . . . . . Largest Inventory Capacity 20 | 5 8 8 20 20 20 20 20 20 20 20 20 20 20 20 20 20 20 20 20 20 20 20 5 5 5 5 5 5 7 7 7 Average Capacity 17 | 5 7 8 15 20 20 20 20 20 20 20 20 20 20 20 20 20 20 20 20 20 20 19 5 5 5 5 5 5 6 7 7 Most Carried 20 | 5 8 8 20 20 20 20 20 20 20 20 20 20 20 20 20 20 20 20 20 20 20 20 5 5 5 5 5 5 7 7 7 Average Carried 16 | 4 7 7 15 19 19 19 19 19 19 19 19 19 20 19 19 19 19 19 19 19 19 19 4 4 5 5 4 4 3 3 5 Final Capacity 20 | 5 8 8 20 20 20 20 20 20 20 20 20 20 20 20 20 20 20 20 20 20 20 5 5 5 5 5 5 5 7 7 7 Final Carried 20 | 5 8 8 20 20 20 20 20 20 20 20 20 20 20 20 19 20 20 20 19 20 20 5 5 5 5 5 4 5 3 4 5 Class Distribution -------------------- 19% | Mutant 16% | Scavenger-Gunner 16% | Gunner 11% | Skirmisher 9% | Scavenger-Skirmisher 5% | Scavenger-Mutant 4% | Alien-Sigix 4% | Scavenger-Assassin 3% | Assassin 3% | Bothacker-Mutant Dominant Class ---------------- Mutant | -10/Materials Mutant | -10/Mines Gunner | -9/Materials Gunner | -9/Mines Mutant | -9/Exiles Skirmisher | -8/Mines Skirmisher | -8/Materials Skirmisher | -8/Garrison Mutant | -8/Materials Skirmisher | -8/Garrison Gunner | -7/Factory Scavenger-Gunner | -7/Garrison Scavenger-Gunner | -7/Factory Gunner | -7/Garrison Bothacker-Mutant | -6/Factory Assassin | -6/Lower Caves Scavenger-Mutant | -6/Lower Caves Scavenger-Mutant | -6/Data Miner Scavenger-Skirmisher | -5/Proximity Caves Scavenger-Skirmisher | -5/Factory Scavenger-Gunner | -5/Garrison Scavenger-Assassin | -4/Factory Mutant | -4/Armory Mutant | -4/Lab Scout | -3/Research Scout | -3/DSF Hacker-Mutant | -2/Research Hacker-Mutant | -2/Quarantine Alien-Sigix | -2/Section 7 Alien-Sigix | -1/Access Alien-Sigix | -1/Command Resources | -11 -10 -10 -9 -9 -9 -8 -8 -8 -8 -8 -7 -7 -7 -7 -6 -6 -6 -6 -5 -5 -5 -4 -4 -4 -3 -3 -2 -2 -2 -1 -1 ----------- Run | Yrd Mat Min Mat Min Exi Min Mat Gar Mat Gar Fac Gar Fac Gar Fac Low Low Dat Pro Fac Gar Fac Arm Lab Res DSF Res Qua Sec Acc Com Matter Collected 8308 | 250 55 55 721 209 . 108 445 651 76 760 158 689 . 361 89 296 374 198 73 284 937 504 152 . 108 . . . 278 4 473 Remotely 620 | . . . . . . . . . . . . . . . . . . . . 120 166 334 . . . . . . . . . Salvage Created 11480 | 100 547 150 798 359 . 100 538 514 18 963 88 999 . 1010 209 140 300 88 . 407 1088 357 236 . 108 . . . 507 252 1604 Parts 602 | 2 39 10 56 20 . 17 41 34 2 43 4 40 . 47 6 5 11 1 . 21 66 14 15 . 8 . . . 25 19 56 Haulers Intercepted 9 | . 1 . 4 . . . . . . . . . . . 1 . . . . . . . . . 1 . . . 2 . . Recyclers Shooed 2 | . . . 1 . . . . . . . . . . . . . . . . . . . . . . . . . 1 . . Parts Field Recycled . | . . . . . . . . . . . . . . . . . . . . . . . . . . . . . . . . Retrieved Matter . | . . . . . . . . . . . . . . . . . . . . . . . . . . . . . . . . Parts Self-Destructed 9 | . . . . . . . . . . . . . . . . 3 6 . . . . . . . . . . . . . . Prevented 5 | . . . . . . . . . . . . . . . . . 5 . . . . . . . . . . . . . . Kills | -11 -10 -10 -9 -9 -9 -8 -8 -8 -8 -8 -7 -7 -7 -7 -6 -6 -6 -6 -5 -5 -5 -4 -4 -4 -3 -3 -2 -2 -2 -1 -1 ------- Run | Yrd Mat Min Mat Min Exi Min Mat Gar Mat Gar Fac Gar Fac Gar Fac Low Low Dat Pro Fac Gar Fac Arm Lab Res DSF Res Qua Sec Acc Com Combat Hostiles Destroyed 221 | . 9 5 12 10 . 4 15 20 . 19 2 21 . 24 4 1 7 1 . 10 19 4 9 . . . . . 12 2 11 Melee 2 | . . . . . . . . . . . . . . . . . . . . . . . . . . . . . 2 . . Guns 179 | . 8 4 12 10 . 1 10 13 . 19 2 19 . 23 4 1 4 1 . 10 19 3 . . . . . . 4 2 10 Cannons 7 | . . . . . . . . . . . . 1 . . . . . . . . . 1 5 . . . . . . . . AOE 29 | . 1 1 . . . 3 5 7 . . . . . . . . 2 . . . . . 3 . . . . . 6 . 1 Classes Destroyed 20 | 1 6 1 2 . . . 1 . . 2 . . . . . 1 . . . . 1 . . . . . . . 5 . . Worker 5 | . 1 . 1 . . . . . . . . . . . . . . . . . . . . . . . . . 1 . 2 Builder 7 | . . . 1 . . 1 2 . . . . . . . . . . . . . . . . . 1 . . . 2 . . Tunneler 3 | . 1 . . . . 2 . . . . . . . . . . . . . . . . . . . . . . . . . Hauler 9 | . 1 . 4 . . . . . . . . . . . 1 . . . . . . . . . 1 . . . 2 . . Recycler 5 | 1 . . 1 . . . . . . . . . . . . . . . . 1 . . . . . . . . 2 . . Minesweeper 2 | . . . . . . . . . . . . . . . . 2 . . . . . . . . . . . . . . . Operator 5 | . 2 . 1 . . . . . . . . . . . . . . . . . . . . . . . . . . . 2 Watcher 9 | . 2 . 3 . . . 2 . . . . . . . . . . . . . . . . . . . . . . 1 1 Swarmer 77 | . . 3 6 3 . 4 7 12 1 . . 4 . 8 3 . 3 . . 9 4 . 7 . . . . . . . 3 Cutter 4 | . . . . . . . . . . . . . . . . . . . . . . . . . . . . . 2 . 2 Grunt 68 | . 9 2 3 7 . . 2 5 . 11 1 5 . 7 . . 3 . . . 8 2 . . . . . . 2 1 . Brawler 5 | . . . . . . . . . . 3 . . . 1 . . 1 . . . . . . . . . . . . . . Duelist 4 | . . . . . . . . . . 2 . 2 . . . . . . . . . . . . . . . . . . . Researcher 4 | . . . . . . . . . . . . . . . . . . . . . . . . . . . . . 4 . . Sentry 32 | . . . 3 . . . 5 1 . 3 . 7 . 3 1 1 . . . . 4 1 . . . . . . 2 . 1 Hunter 14 | . . . . . . . 1 2 . . 1 3 . 5 . . . . . 1 1 . . . . . . . . . . Programmer 6 | . . . . . . . . . . . . . . . . . . . . . 2 2 2 . . . . . . . . Heavy 2 | . . . . . . . . . . . . . . . . . . . . . . . . . . . . . 1 1 . Behemoth 1 | . . . . . . . . . . . . . . . . . . . . . . . . . . . . . 1 . . M Guard 2 | . . . . . . . . . . . . . . . . . . . . . . . . . . . . . . . 2 Enhanced Grunt 1 | . . . . . . . . . . . . . . . . . . 1 . . . . . . . . . . . . . Tracker 2 | . . . . . . . . . . . . . . . . . . . . . . . . . . . . . 2 . . Combat Programmer 2 | . . . . . . . . . . . . . . . . . . . . . . . . . . . . . . . 2 Striker 2 | . . . . . . . . . . . . . . . . . . . . . . . . . . . . . 2 . . Thug 1 | . . . . . . . . . . . . . . . 1 . . . . . . . . . . . . . . . . Best Kill Streak 17 | 1 3 3 5 3 . 4 5 4 . 4 1 5 . 5 3 1 4 1 . 5 7 2 4 . 2 . . . 17 1 5 Combat Bots Only 8 | . 2 3 4 3 . 4 4 4 . 4 1 5 . 5 3 1 4 1 . 5 7 2 4 . . . . . 8 1 5 Max Kills in Single Turn 15 | 1 2 1 2 2 . 2 3 3 1 1 1 2 . 2 1 1 2 1 . 2 2 1 3 . 1 . . . 15 1 3 Gunslinging 1 | . . . 1 1 . . . 1 . . . 1 . 1 . . . . . 1 1 . . . . . . . . . 1 Exploded 6 | . 1 1 . . . 2 3 3 . . . . . . . . 2 . . . . . 3 . . . . . 6 . 1 Melee 1 | . . . . . . . . . . . . . . . . . . . . . . . . . . . . . 1 . . Uniques/NPCs Destroyed 1 | . . . . . . . . . . . . . . . . . . . . . . . . . . . . . . . 1 MAIN.C Shell (-1/Command) Combat | -11 -10 -10 -9 -9 -9 -8 -8 -8 -8 -8 -7 -7 -7 -7 -6 -6 -6 -6 -5 -5 -5 -4 -4 -4 -3 -3 -2 -2 -2 -1 -1 -------- Run | Yrd Mat Min Mat Min Exi Min Mat Gar Mat Gar Fac Gar Fac Gar Fac Low Low Dat Pro Fac Gar Fac Arm Lab Res DSF Res Qua Sec Acc Com Hostile Shots Fired 1595 | . 33 17 23 39 . 2 43 158 5 52 22 102 . 104 38 23 43 4 . 47 66 206 33 . . 14 43 15 269 46 148 Missed 543 | . 12 2 6 10 . . 15 62 1 13 11 41 . 39 16 15 5 2 . 11 15 58 13 . . 12 28 8 95 14 39 Damage Taken 17421 | . 342 213 185 323 . 17 377 809 62 651 96 609 . 697 295 108 557 96 . 575 923 2923 848 . . 15 317 125 2840 428 2990 Core 3513 | . 156 61 45 38 . 7 42 85 . 29 11 108 . 62 6 20 74 . . 22 106 257 224 . . . 42 26 1033 136 923 Absorbed by Shields 476 | . . . . . . . . 11 . . . . . . . . . . . . . . . . . . 18 . 447 . . Ignored by Resistances 5441 | . . . . . . . . . . . . . . . . . . . . . . . . . . . . . 1940 443 3058 Regen/Repaired (Parts) 532 | . . . 65 . . . 78 . . . . . . . 299 . . . . . . . . . . . 85 5 . . . Core Remaining (%) 68 | 100 . 13 . . . 77 . . . 71 . . . 74 . . . . 88 . 87 . . 54 . 100 . . 24 . . Volleys Fired 572 | 8 40 11 35 21 . 7 33 42 2 41 10 47 . 39 16 3 19 5 1 12 29 27 12 . . . . . 35 9 68 Largest 4 | 2 2 2 3 3 . 3 3 3 3 3 3 3 . 3 3 3 2 3 1 4 4 4 1 . . . . . 2 4 4 Hottest 400 | 80 80 100 114 69 . 69 82 74 84 84 121 235 . 240 188 91 56 103 35 133 136 134 120 . . . . . 200 400 400 Shots Fired 1508 | 16 80 21 103 63 . 17 67 108 6 121 30 104 . 101 29 9 31 15 1 48 99 75 13 . . . . . 69 33 249 Gun 1439 | 16 80 20 101 63 . 15 57 102 6 121 24 101 . 101 29 9 27 15 . 48 97 64 . . . . . . 68 33 242 Cannon 40 | . . . 2 . . . 5 . . . 6 3 . . . . . . 1 . . 11 12 . . . . . . . . Launcher 26 | . . . . . . 2 5 6 . . . . . . . . 4 . . . . . 1 . . . . . 1 . 7 Special 3 | . . 1 . . . . . . . . . . . . . . . . . . 2 . . . . . . . . . . Kinetic 819 | . . . 97 63 . 15 57 102 6 121 24 44 . 24 6 9 27 15 . 48 97 64 . . . . . . . . . Thermal 201 | . . 1 2 . . . 5 . . . 6 60 . 77 23 . . . 1 . 2 11 12 . . . . . 1 . . Explosive 21 | . . . . . . 2 5 6 . . . . . . . . . . . . . . 1 . . . . . . . 7 Electromagnetic 124 | 16 80 20 4 . . . . . . . . . . . . . 4 . . . . . . . . . . . . . . Slashing 343 | . . . . . . . . . . . . . . . . . . . . . . . . . . . . . 68 33 242 Robot Hit Streak 36 | 5 10 4 8 10 . 7 10 8 11 14 9 27 . 36 19 5 11 6 . 7 30 33 25 . . . . . 9 14 23 Robot Miss Streak 8 | 2 3 1 4 3 . 3 3 6 . 2 1 3 . 5 5 2 8 1 . 2 7 4 1 . . . . . 2 1 3 Penetration Max 1 | . . . . . . . . . . 1 . 1 . 1 . . . . . 1 1 1 . . . . . . 1 1 1 Secondary Targets 39 | . . . 2 2 . . 1 5 . 3 . 3 . 7 . . 1 . . 3 5 1 . . . . . . 2 . 4 Max Gunslinging Chain 2 | . . . 1 1 . . 1 2 . 1 . 2 . 1 . . 1 . . 1 1 1 . . . . . . 1 . 2 Shots Hit Robots 1001 | 9 50 13 64 44 3 5 45 64 3 92 23 70 . 75 31 16 28 14 . 24 58 62 25 . 4 . . 1 29 22 127 Core Hits 545 | 2 25 7 30 15 . 6 30 31 1 33 5 62 . 69 19 11 32 4 . 14 36 14 8 . 2 . . . 24 8 57 Critical Kills 5 | . . . . . . . . . . 2 . . . . . . . . . . 2 . 1 . . . . . . . . Critical Parts Destroyed 6 | . . . 3 . . . . . . 1 . . . . . . . . . . 1 1 . . . . . . . . . Critical Strikes 16 | . . . 3 . . . 2 . . 3 . . . . . . . . . . 3 1 1 . 1 . . . 1 . 1 Meltdown 1 | . . . . . . . . . . . . . . . . . . . . . . . 1 . . . . . . . . Destroy 10 | . . . 3 . . . . . . 3 . . . . . . . . . . 3 1 . . . . . . . . . Sever 4 | . . . . . . . 2 . . . . . . . . . . . . . . . . . . . . . 1 . 1 Impale 1 | . . . . . . . . . . . . . . . . . . . . . . . . . 1 . . . . . . Melee Attacks 240 | . . . 2 . 3 . 10 4 6 26 7 7 . 12 3 11 8 33 . . . 7 35 29 5 . 10 13 9 . . Impact . | . . . . . . . . . . . . . . . . . . . . . . . . . . . . . . . . Slashing 144 | . . . . . . . 10 4 6 21 3 2 . 2 . 11 3 27 . . . 4 19 . . . 10 13 9 . . Piercing 45 | . . . . . . . . . . . . . . . . . 5 6 . . . . . 29 5 . . . . . . Sneak Attacks 47 | . . . 2 . 3 . 1 . . 1 2 5 . 6 2 6 . 1 . . . . 15 . 2 . . . 1 . . Combat Hostiles 1 | . . . . . . . . . . 1 . . . . . . . . . . . . . . . . . . . . . Follow-up Attacks . | . . . . . . . . . . . . . . . . . . . . . . . . . . . . . . . . Damage Inflicted 44832 | 155 999 235 983 718 . 168 1350 1537 79 1838 429 1778 . 1689 707 722 830 379 . 727 2158 1341 800 . 276 . . 57 14266 1109 9502 Guns 27019 | 119 738 165 983 718 . 76 558 1058 65 1782 269 1723 . 1689 707 173 460 312 . 727 2158 1129 . . . . . . 1678 1109 8623 Cannons 911 | . . . . . . . . . . . 160 55 . . . . . . . . . 212 484 . . . . . . . . Explosions 15319 | 35 261 70 . . . 92 519 479 . . . . . . . . 370 . . . . . 316 . . . . . 12298 . 879 Melee 1525 | . . . . . . . 273 . . 56 . . . . . 549 . 67 . . . . . . 276 . . 57 247 . . Ramming 58 | 1 . . . . . . . . 14 . . . . . . . . . . . . . . . . . . . 43 . . Kinetic 11287 | . . . 948 718 . 76 558 1058 65 1782 269 475 . 291 88 173 460 312 . 727 2158 1129 . . . . . . . . . Thermal 16720 | 35 141 70 . . . . . . . . 160 1303 . 1398 619 . . . . . . 212 484 . . . . . 12298 . . Explosive 2405 | . 120 . . . . 92 519 479 . . . . . . . . . . . . . . 316 . . . . . . . 879 Electromagnetic 1427 | 119 738 165 35 . . . . . . . . . . . . . 370 . . . . . . . . . . . . . . Impact . | . . . . . . . . . . . . . . . . . . . . . . . . . . . . . . . . Slashing 12592 | . . . . . . . 273 . . 56 . . . . . 549 . . . . . . . . . . . 57 1925 1109 8623 Piercing 343 | . . . . . . . . . . . . . . . . . . 67 . . . . . . 276 . . . . . . Highest Corruption 24 | . . 6 . . . . . . . . . . . . 1 1 1 1 24 . 2 14 18 18 . . 2 2 2 . 3 Average Corruption 3 | . . 5 . . . . . . . . . . . . 1 1 1 1 1 . 2 9 16 18 . . 1 2 1 . 1 Corruption Purged 1 | . . . . . . . . . . . . . . . . . . . . . . . . . . . . . . . 1 Corruption Blocked . | . . . . . . . . . . . . . . . . . . . . . . . . . . . . . . . . Effects 79 | . . . . . . . . . . . . . . . 6 11 9 4 4 . 2 1 21 17 . . 1 1 . . 2 Message Errors 17 | . . . . . . . . . . . . . . . 1 1 4 1 . . . . 3 6 . . . . . . 1 Matter Fused 19 | . . . . . . . . . . . . . . . 2 4 1 1 2 . . . 4 3 . . 1 1 . . . Heat Flow Errors 12 | . . . . . . . . . . . . . . . . . 1 1 2 . 1 . 5 2 . . . . . . . Energy Discharges 8 | . . . . . . . . . . . . . . . 1 2 . 1 . . . . 1 3 . . . . . . . Parts Fused 1 | . . . . . . . . . . . . . . . . . 1 . . . . . . . . . . . . . . Data Loss (minor) 10 | . . . . . . . . . . . . . . . . . 2 . . . 1 . 4 2 . . . . . . 1 Data Loss (major) 5 | . . . . . . . . . . . . . . . 2 2 . . . . . . . 1 . . . . . . . Misfires 3 | . . . . . . . . . . . . . . . . 2 . . . . . . 1 . . . . . . . . Alerts 1 | . . . . . . . . . . . . . . . . . . . . . . . 1 . . . . . . . . Misdirections 2 | . . . . . . . . . . . . . . . . . . . . . . . 2 . . . . . . . . Weapon Failures 1 | . . . . . . . . . . . . . . . . . . . . . . 1 . . . . . . . . . Overload Shots . | . . . . . . . . . . . . . . . . . . . . . . . . . . . . . . . . Overflow Damage 1520 | . 68 . . . . 8 31 9 . . . . . . . 168 . 7 . . . . 40 . 20 . . 2 1167 . . Projectiles 40 | . . . . . . . . . . . . . . . . . . . . . . . 40 . . . . . . . . Explosions 1243 | . 68 . . . . 8 . 9 . . . . . . . . . . . . . . . . . . . . 1158 . . Melee 237 | . . . . . . . 31 . . . . . . . . 168 . 7 . . . . . . 20 . . 2 9 . . Knockbacks . | . . . . . . . . . . . . . . . . . . . . . . . . . . . . . . . . Impact . | . . . . . . . . . . . . . . . . . . . . . . . . . . . . . . . . Kinetic . | . . . . . . . . . . . . . . . . . . . . . . . . . . . . . . . . Secondary . | . . . . . . . . . . . . . . . . . . . . . . . . . . . . . . . . Self-Inflicted Damage 1110 | . 86 37 . . . . . . . . . . . . . . . . . . . . 34 . . . . . 953 . . Shots 4 | . 1 1 . . . . . . . . . . . . . . . . . . . . 1 . . . . . 1 . . Rammed . | . . . . . . . . . . . . . . . . . . . . . . . . . . . . . . . . Targets Rammed 4 | 1 1 . . . . . . . 1 . . . . . . . . . . . . . . . . . . . 1 . . Kicked 4 | 1 1 . . . . . . . 1 . . . . . . . . . . . . . . . . . . . 1 . . Crushed . | . . . . . . . . . . . . . . . . . . . . . . . . . . . . . . . . Highest Temperature 496 | 72 174 102 96 60 . 6 42 54 9 157 126 183 . 202 244 71 268 185 152 220 334 220 350 257 . . . . 296 212 496 Average Temperature 67 | 26 46 46 12 27 . 2 14 15 5 46 44 62 . 46 107 28 65 93 69 81 103 70 124 122 . . . . 143 97 138 Received Heat Transfer 3031 | . 141 60 48 183 . . 72 126 36 360 21 144 . 174 39 18 93 . . . 144 634 18 . . . 45 . 549 18 108 Effects 10 | . . . . . . . . . . . . . . . 2 . . . . . . 3 . . . . . . . . 5 Shutdowns 1 | . . . . . . . . . . . . . . . . . . . . . . . . . . . . . . . 1 Energy Bleed 1 | . . . . . . . . . . . . . . . . . . . . . . . . . . . . . . . 1 Interference 8 | . . . . . . . . . . . . . . . 2 . . . . . . 3 . . . . . . . . 3 Siege Activations . | . . . . . . . . . . . . . . . . . . . . . . . . . . . . . . . . Robots Corrupted 1 | . . . . . . . . . . . . . . . . . 1 . . . . . . . . . . . . . . Combat Hostiles 1 | . . . . . . . . . . . . . . . . . 1 . . . . . . . . . . . . . . Parts Fried 7 | . 1 1 . . . . . . . . . . . . . . 5 . . . . . . . . . . . . . . Impact Corruptions . | . . . . . . . . . . . . . . . . . . . . . . . . . . . . . . . . Robots Melted 4 | . . . . . . . . . . . . 1 . 1 1 . . . . . . . 1 . . . . . . . . Combat Hostiles 3 | . . . . . . . . . . . . 1 . 1 . . . . . . . . 1 . . . . . . . . Parts Melted 15 | . 1 . . . . . . . . . . 7 . 3 1 . . . . . . 2 1 . . . . . . . . Heat Transferred 8512 | 50 250 100 . . . . . . . . 185 2824 . 3000 1400 . . . . . . 250 333 . . . . . 120 . . Parts Sabotaged . | . . . . . . . . . . . . . . . . . . . . . . . . . . . . . . . . Parts Stolen 3 | . . . . . . . . . . . . . . . . . 3 . . . . . . . . . . . . . . Parts Stripped . | . . . . . . . . . . . . . . . . . . . . . . . . . . . . . . . . Power Chain Reactions 6 | 1 3 1 . . . . . . . . . . . . . . 1 . . . . . . . . . . . . . . Missiles Intercepted . | . . . . . . . . . . . . . . . . . . . . . . . . . . . . . . . . Alert | -11 -10 -10 -9 -9 -9 -8 -8 -8 -8 -8 -7 -7 -7 -7 -6 -6 -6 -6 -5 -5 -5 -4 -4 -4 -3 -3 -2 -2 -2 -1 -1 ------- Run | Yrd Mat Min Mat Min Exi Min Mat Gar Mat Gar Fac Gar Fac Gar Fac Low Low Dat Pro Fac Gar Fac Arm Lab Res DSF Res Qua Sec Acc Com Peak Influence 1830 | 5 303 252 213 120 . 130 368 664 347 1134 642 920 394 1050 550 . . . . 313 618 461 482 . 11 8 207 291 1830 1655 1684 Initial 1100 | . 3 59 28 . . . . 74 323 225 595 358 388 296 550 . . . . . 100 324 50 . . 8 . 116 163 1100 1100 Average 394 | 1 122 148 105 30 . 42 162 389 329 659 561 548 391 745 269 . . . . 165 390 353 261 . 7 5 92 210 1384 1512 1442 Maximum Alert Level 5 | . 1 1 1 . . . 1 2 1 4 2 3 1 3 2 . . . . 1 2 2 2 . . . 1 1 5 5 5 Low Security (%) 40 | 100 82 98 94 100 . 100 61 19 . . . . . . 32 . . . . 66 27 2 19 . 100 100 98 34 2 . . Level 1 20 | . 17 1 5 . . . 38 26 100 17 . 10 100 13 53 . . . . 33 10 50 68 . . . 1 65 3 . . Level 2 21 | . . . . . . . . 54 . 33 100 70 . 13 14 . . . . . 61 46 12 . . . . . . . . Level 3 10 | . . . . . . . . . . 45 . 19 . 72 . . . . . . . . . . . . . . . . . Level 4 4 | . . . . . . . . . . 3 . . . . . . . . . . . . . . . . . . 64 9 85 Level 5 . | . . . . . . . . . . . . . . . . . . . . . . . . . . . . . . . 14 High Security . | . . . . . . . . . . . . . . . . . . . . . . . . . . . . . . . . Max Security 1 | . . . . . . . . . . . . . . . . . . . . . . . . . . . . . 29 90 . Squads Dispatched 65 | . 4 . 1 1 . 1 2 . 1 . 4 . 2 . 2 . . . . 1 . 4 2 . . . . . 21 14 5 Investigation 15 | . 3 . . 1 . . 2 . . . 2 . 1 . 1 . . . . 1 . 1 . . . . . . 1 1 1 Extermination 5 | . . . . . . . . . . . 2 . 1 . . . . . . . . 1 . . . . . . 1 . . Reinforcement 14 | . 1 . 1 . . 1 . . 1 . . . . . . . . . . . . . 2 . . . . . 3 1 4 Assault 26 | . . . . . . . . . . . . . . . . . . . . . . 1 . . . . . . 13 12 . Garrison 2 | . . . . . . . . . . . . . . . 1 . . . . . . 1 . . . . . . . . . Intercept 3 | . . . . . . . . . . . . . . . . . . . . . . . . . . . . . 3 . . Searches Triggered . | . . . . . . . . . . . . . . . . . . . . . . . . . . . . . . . . Construction Impeded 1 | . . . . . . 1 . . . . . . . . . . . . . . . . . . . . . . . . . Haulers Reinforced . | . . . . . . . . . . . . . . . . . . . . . . . . . . . . . . . . Active Scanning Responses . | . . . . . . . . . . . . . . . . . . . . . . . . . . . . . . . . Cargo Convoy Interrupts . | . . . . . . . . . . . . . . . . . . . . . . . . . . . . . . . . Alert ID Control Effect 3 | . . . . . . . . . . . . . . . . . . . . . . 3 . . . . . . . . . Stealth | -11 -10 -10 -9 -9 -9 -8 -8 -8 -8 -8 -7 -7 -7 -7 -6 -6 -6 -6 -5 -5 -5 -4 -4 -4 -3 -3 -2 -2 -2 -1 -1 --------- Run | Yrd Mat Min Mat Min Exi Min Mat Gar Mat Gar Fac Gar Fac Gar Fac Low Low Dat Pro Fac Gar Fac Arm Lab Res DSF Res Qua Sec Acc Com Distress Signals 10 | . . . 2 . . . 3 . . . . . . . . . . . . . . 1 1 . . . 1 1 1 . . Communications Jammed 13 | . . . . . . . . . 1 . . . . . . . . . . . . 12 . . . . . . . . . Distress Signals 11 | . . . . . . . . . . . . . . . . . . . . . . 11 . . . . . . . . . Times Spotted 435 | . 16 6 27 9 . 3 18 18 4 23 5 21 1 29 4 2 12 3 . 9 18 20 13 . . 2 14 10 82 35 31 Peak Tracking Total 26 | . 3 3 4 3 . 2 5 6 3 4 1 4 1 4 3 1 4 2 . 5 7 9 5 . . 2 9 6 18 26 10 Tactical Retreats 13 | . . 1 . . . . . 1 . . . . . 1 . 1 . . . . . . 2 . . . 5 2 . . . Traps | -11 -10 -10 -9 -9 -9 -8 -8 -8 -8 -8 -7 -7 -7 -7 -6 -6 -6 -6 -5 -5 -5 -4 -4 -4 -3 -3 -2 -2 -2 -1 -1 ------- Run | Yrd Mat Min Mat Min Exi Min Mat Gar Mat Gar Fac Gar Fac Gar Fac Low Low Dat Pro Fac Gar Fac Arm Lab Res DSF Res Qua Sec Acc Com Traps Triggered 16 | . 1 . . . . . . 2 . 2 . 1 . 1 2 . . . . . 5 . . . . 1 1 . . . . Indirectly . | . . . . . . . . . . . . . . . . . . . . . . . . . . . . . . . . Trap Hack Attempts 38 | . . . 25 . . . . . . . . . . 13 . . . . . . . . . . . . . . . . . Triggered . | . . . . . . . . . . . . . . . . . . . . . . . . . . . . . . . . Disarmed 1 | . . . 1 . . . . . . . . . . . . . . . . . . . . . . . . . . . . Reprogrammed 8 | . . . 5 . . . . . . . . . . 3 . . . . . . . . . . . . . . . . . Reused 7 | . . . 3 . . . . . . 1 . . . . . . . 3 . . . . . . . . . . . . . Traps Reconfigurated 14 | . . . . . . . . . . 4 10 . . . . . . . . . . . . . . . . . . . . Traps Extracted 1 | . . . . . . . . . . . . . . . . . . 1 . . . . . . . . . . . . . Installed 6 | . . . . . . . . . . . . . . . . . . 6 . . . . . . . . . . . . . Triggered 4 | . . . 3 . . . . . . 1 . . . . . . . . . . . . . . . . . . . . . Most Traps Carried 6 | . . . . . . . . . . . . . . . . 6 6 6 1 1 1 . . . . . . . . . . Machines | -11 -10 -10 -9 -9 -9 -8 -8 -8 -8 -8 -7 -7 -7 -7 -6 -6 -6 -6 -5 -5 -5 -4 -4 -4 -3 -3 -2 -2 -2 -1 -1 ---------- Run | Yrd Mat Min Mat Min Exi Min Mat Gar Mat Gar Fac Gar Fac Gar Fac Low Low Dat Pro Fac Gar Fac Arm Lab Res DSF Res Qua Sec Acc Com Machines Disabled 66 | . 4 . . . . 1 3 1 . 8 . . . . 1 . . . . 4 2 4 6 3 . . . 4 22 1 2 Max in Single Turn 13 | . 2 . . . . 1 2 1 . 1 . . . . . . . . . 2 1 1 1 1 . . . 1 13 1 1 Garrison Access 6 | . . . . . . . . . . . . . . . 1 . . . . 1 . 2 . . 1 . 1 . . . . Garrison Relay 15 | . . . . . . . . 1 . 3 . 2 . 5 . . . . . . 4 . . . . . . . . . . Phase Generator 4 | . . . . . . . . . . 1 . 1 . 1 . . . . . . 1 . . . . . . . . . . Machines Repaired . | . . . . . . . . . . . . . . . . . . . . . . . . . . . . . . . . Machines Dismantled 18 | . . . . . . . 1 . . 1 . 6 . 7 . . . . . . 3 . . . . . . . . . . Machines Sabotaged . | . . . . . . . . . . . . . . . . . . . . . . . . . . . . . . . . Overloaded Fab Kills . | . . . . . . . . . . . . . . . . . . . . . . . . . . . . . . . . Hacking | -11 -10 -10 -9 -9 -9 -8 -8 -8 -8 -8 -7 -7 -7 -7 -6 -6 -6 -6 -5 -5 -5 -4 -4 -4 -3 -3 -2 -2 -2 -1 -1 --------- Run | Yrd Mat Min Mat Min Exi Min Mat Gar Mat Gar Fac Gar Fac Gar Fac Low Low Dat Pro Fac Gar Fac Arm Lab Res DSF Res Qua Sec Acc Com Machines Accessed 97 | . 6 1 8 1 2 . 11 2 1 3 5 4 2 4 8 2 . 4 . 3 1 2 5 1 3 . 4 4 5 1 4 Terminals 69 | . 5 1 7 . . . 9 2 . 3 3 4 . 4 6 1 . . . 1 1 . 5 . 1 . 3 4 5 . 4 Fabricators 1 | . . . . . . . . . . . . . 1 . . . . . . . . . . . . . . . . . . Repair Stations 4 | . . . 1 . . . 1 . . . 1 . . . 1 . . . . . . . . . . . . . . . . Recycling Units 1 | . 1 . . . . . . . . . . . . . . . . . . . . . . . . . . . . . . Scanalyzers 1 | . . . . . . . . . . . . . . . . . . . . . . . . . 1 . . . . . . Garrison Access 12 | . . . . . . . 1 . 1 . 1 . 1 . 1 . . . . 2 . 2 . . 1 . 1 . . 1 . Total Hacks 295 | . 20 3 33 1 5 . 30 5 2 5 12 10 7 7 33 2 . 29 . 7 2 3 12 19 4 . 6 17 12 2 7 Successful 162 | . 5 1 17 1 5 . 16 1 2 1 4 2 6 4 14 2 . 29 . 7 . 3 5 19 3 . 2 6 6 . 1 Failed 133 | . 15 2 16 . . . 14 4 . 4 8 8 1 3 19 . . . . . 2 . 7 . 1 . 4 11 6 2 6 Catastrophic 33 | . . . 1 . . . 3 1 . 3 2 5 . 1 5 . . . . . 1 . 2 . . . 3 4 . 1 1 Database Lockouts . | . . . . . . . . . . . . . . . . . . . . . . . . . . . . . . . . Manual 105 | . 10 . 18 . 1 . 13 2 1 4 4 5 5 2 10 . . . . 2 . 1 7 . . . 1 11 2 . 6 Terminals 191 | . 18 3 31 . . . 24 5 . 5 8 10 . 7 22 1 . . . 1 2 . 12 . 1 . 5 17 12 . 7 Fabricators 2 | . . . . . . . . . . . . . 2 . . . . . . . . . . . . . . . . . . Repair Stations 14 | . . . 2 . . . 2 . . . 1 . . . 9 . . . . . . . . . . . . . . . . Recycling Units 2 | . 2 . . . . . . . . . . . . . . . . . . . . . . . . . . . . . . Scanalyzers 2 | . . . . . . . . . . . . . . . . . . . . . . . . . 2 . . . . . . Garrison Access 29 | . . . . . . . 4 . 2 . 3 . 5 . 2 . . . . 6 . 3 . . 1 . 1 . . 2 . Terminal Hacks 115 | . 5 1 13 1 5 . 11 1 . 1 1 2 . 4 5 2 . 29 . 1 . . 3 19 1 . 1 3 5 . 1 Record 35 | . . . . . 4 . . . . . . . . . . 1 . 11 . . . . . 19 . . . . . . . Part Schematic 10 | . . . . . . . . . . . . . . . . . . 10 . . . . . . . . . . . . . Robot Schematic 5 | . . . . . . . . . . . . . . . . . . 5 . . . . . . . . . . . . . Robot Analysis 5 | . 3 . 1 . . . 1 . . . . . . . . . . . . . . . . . . . . . . . . Prototype ID Bank 4 | . . . 1 . . . . . . . . . . . . . . 3 . . . . . . . . . . . . . Open Door 11 | . . . . 1 . . . . . 1 . 1 . 1 . 1 . . . . . . . . . . . 1 4 . 1 Open DSF 1 | . . . . . . . . . . . . . . . . . . . . . . . . . 1 . . . . . . Branch Access Points 4 | . 1 . 1 . . . . . . . . . . . 1 . . . . . . . . . . . 1 . . . . Emergency Access Points 1 | . . . . . . . . . . . . . . . . . . . . . . . 1 . . . . . . . . Machine Index 1 | . . . . . . . 1 . . . . . . . . . . . . . . . . . . . . . . . . Terminal Index 2 | . . . . . . . . . . . 1 . . . 1 . . . . . . . . . . . . . . . . Alert Level 2 | . . . 1 . . . 1 . . . . . . . . . . . . . . . . . . . . . . . . Unreport Threat 4 | . . . 1 . . . 1 . . . . . . . 2 . . . . . . . . . . . . . . . . Locate Traps 8 | . . . 4 . . . 1 . . . . . . . 1 . . . . 1 . . . . . . . 1 . . . Maintenance Status 1 | . . . . . . . 1 . . . . . . . . . . . . . . . . . . . . . . . . Security Status 1 | . 1 . . . . . . . . . . . . . . . . . . . . . . . . . . . . . . Hauler Manifests 3 | . . . 2 . . . 1 . . . . . . . . . . . . . . . . . . . . . . . . Registered Components 1 | . . . . . . . . . . . . . . . . . . . . . . . . . . . . 1 . . . Zone Layout 11 | . . 1 2 . . . 4 1 . . . . . . . . . . . . . . 2 . . . . . 1 . . Garrison Registry 2 | . . . . . . . . . . . . 1 . 1 . . . . . . . . . . . . . . . . . Patrol Navigation 1 | . . . . . . . . . . . . . . 1 . . . . . . . . . . . . . . . . . Security Stations 1 | . . . . . . . . . . . . . . 1 . . . . . . . . . . . . . . . . . Derelict Proto ID Bank 1 | . . . . . 1 . . . . . . . . . . . . . . . . . . . . . . . . . . Fabricator Hacks . | . . . . . . . . . . . . . . . . . . . . . . . . . . . . . . . . Repair Station Hacks 10 | . . . 2 . . . 2 . . . . . . . 6 . . . . . . . . . . . . . . . . Scan Component 5 | . . . 1 . . . 1 . . . . . . . 3 . . . . . . . . . . . . . . . . Repair 5 | . . . 1 . . . 1 . . . . . . . 3 . . . . . . . . . . . . . . . . Recycling Unit Hacks . | . . . . . . . . . . . . . . . . . . . . . . . . . . . . . . . . Scanalyzer 1 | . . . . . . . . . . . . . . . . . . . . . . . . . 1 . . . . . . Insert Component 1 | . . . . . . . . . . . . . . . . . . . . . . . . . 1 . . . . . . Garrison Access Hacks 14 | . . . . . . . 1 . 1 . 1 . 2 . 1 . . . . 4 . 2 . . 1 . 1 . . . . Unlock Access 5 | . . . . . . . 1 . 1 . 1 . 1 . . . . . . 1 . . . . . . . . . . . Seal Access 5 | . . . . . . . . . . . . . . . 1 . . . . 1 . 1 . . 1 . 1 . . . . Coupler Status 4 | . . . . . . . . . . . . . 1 . . . . . . 2 . 1 . . . . . . . . . Unauthorized Hacks 22 | . . . 2 . . . 2 . 1 . 2 . 4 . 2 . . . . 2 . 1 2 . . . . 3 1 . . Terminals 12 | . . . 2 . . . 2 . . . 1 . . . 1 . . . . . . . 2 . . . . 3 1 . . Track 3 | . . . . . . . . . . . . . . . . . . . . . . . 2 . . . . 1 . . . Assimilate 3 | . . . . . . . 1 . . . 1 . . . . . . . . . . . . . . . . 1 . . . Botnet 6 | . . . 2 . . . 1 . . . . . . . 1 . . . . . . . . . . . . 1 1 . . Fabricators 2 | . . . . . . . . . . . . . 2 . . . . . . . . . . . . . . . . . . Liberate 1 | . . . . . . . . . . . . . 1 . . . . . . . . . . . . . . . . . . Haulers 1 | . . . . . . . . . . . . . 1 . . . . . . . . . . . . . . . . . . Repair Stations 1 | . . . . . . . . . . . . . . . 1 . . . . . . . . . . . . . . . . Mechanics 1 | . . . . . . . . . . . . . . . 1 . . . . . . . . . . . . . . . . Recycling Units . | . . . . . . . . . . . . . . . . . . . . . . . . . . . . . . . . Scanalyzers . | . . . . . . . . . . . . . . . . . . . . . . . . . . . . . . . . Garrison Access 7 | . . . . . . . . . 1 . 1 . 2 . . . . . . 2 . 1 . . . . . . . . . Reprogram 5 | . . . . . . . . . 1 . 1 . 1 . . . . . . 1 . 1 . . . . . . . . . Eject 2 | . . . . . . . . . . . . . 1 . . . . . . 1 . . . . . . . . . . . Data Cores Recovered 2 | . 1 . . . . . . . . . . . . . . . . . . . . . . . . . . . . . 1 Used . | . . . . . . . . . . . . . . . . . . . . . . . . . . . . . . . . Hacking Detections 72 | . 6 1 8 . . . 9 2 . 2 5 4 2 3 7 . . . . 2 1 1 5 . 2 . 2 3 3 1 3 Full Trace Events 18 | . 3 1 2 . . . 2 1 . 1 1 2 . . 1 . . . . . 1 . . . . . . . 1 1 1 Feedback Events 1 | . . . . . . . . . . . . . . . . . . . . . . . . . . . . . . . 1 Corruption 1 | . . . . . . . . . . . . . . . . . . . . . . . . . . . . . . . 1 Feedback Blocked . | . . . . . . . . . . . . . . . . . . . . . . . . . . . . . . . . Robot Schematics Acquired 5 | . . . . . . . . . . . . . . . . . . 5 . . . . . . . . . . . . . Robots Built . | . . . . . . . . . . . . . . . . . . . . . . . . . . . . . . . . Authchips . | . . . . . . . . . . . . . . . . . . . . . . . . . . . . . . . . Time . | . . . . . . . . . . . . . . . . . . . . . . . . . . . . . . . . Total Robot Build Rating . | . . . . . . . . . . . . . . . . . . . . . . . . . . . . . . . . Part Schematics Acquired 13 | . . . . . . . . . . . . . . . . . . 10 . . . . . . . . . . 3 . . Parts Built . | . . . . . . . . . . . . . . . . . . . . . . . . . . . . . . . . Authchips . | . . . . . . . . . . . . . . . . . . . . . . . . . . . . . . . . Time . | . . . . . . . . . . . . . . . . . . . . . . . . . . . . . . . . Total Part Build Rating . | . . . . . . . . . . . . . . . . . . . . . . . . . . . . . . . . Parts Repaired 5 | . . . 1 . . . 1 . . . . . . . 3 . . . . . . . . . . . . . . . . Time 196 | . . . 38 . . . 32 . . . . . . . 126 . . . . . . . . . . . . . . . . Parts Recycled . | . . . . . . . . . . . . . . . . . . . . . . . . . . . . . . . . Recycled Matter . | . . . . . . . . . . . . . . . . . . . . . . . . . . . . . . . . Retrieved Matter . | . . . . . . . . . . . . . . . . . . . . . . . . . . . . . . . . Retrieved Components . | . . . . . . . . . . . . . . . . . . . . . . . . . . . . . . . . Parts Scanalyzed . | . . . . . . . . . . . . . . . . . . . . . . . . . . . . . . . . Part Schematics Acquired . | . . . . . . . . . . . . . . . . . . . . . . . . . . . . . . . . Parts Damaged . | . . . . . . . . . . . . . . . . . . . . . . . . . . . . . . . . Bothacking | -11 -10 -10 -9 -9 -9 -8 -8 -8 -8 -8 -7 -7 -7 -7 -6 -6 -6 -6 -5 -5 -5 -4 -4 -4 -3 -3 -2 -2 -2 -1 -1 ------------ Run | Yrd Mat Min Mat Min Exi Min Mat Gar Mat Gar Fac Gar Fac Gar Fac Low Low Dat Pro Fac Gar Fac Arm Lab Res DSF Res Qua Sec Acc Com Used RIF Installer 6 | . . . . . . . . 1 . 1 . 1 . 2 . . . . . . 1 . . . . . . . . . . Command Fork 1 | . . . . . . . . . . . . 1 . . . . . . . . . . . . . . . . . . . Threat Obfuscator 1 | . . . . . . . . . . . . . . . . . . . . . 1 . . . . . . . . . . Zone Cloak 1 | . . . . . . . . . . 1 . . . . . . . . . . . . . . . . . . . . . Robot Detection 1 | . . . . . . . . . . . . . . 1 . . . . . . . . . . . . . . . . . Alert ID Control 1 | . . . . . . . . . . . . . . 1 . . . . . . . . . . . . . . . . . Robots Hacked 20 | . . . 1 . 3 . . . . 2 3 1 . 3 2 . . . . . . 3 2 . . . . . . . . Non-combat 9 | . . . 1 . 2 . . . . . 2 1 . . 2 . . . . . . . 1 . . . . . . . . Combat 11 | . . . . . 1 . . . . 2 1 . . 3 . . . . . . . 3 1 . . . . . . . . Robot Hacks Applied 26 | . . . 1 . 3 . . . . 4 4 4 . 3 2 . . . . . . 3 2 . . . . . . . . parse_system 5 | . . . . . 3 . . . . 1 . . . . . . . . . . . . 1 . . . . . . . . no_distress 1 | . . . 1 . . . . . . . . . . . . . . . . . . . . . . . . . . . . map_earth 1 | . . . . . . . . . . . 1 . . . . . . . . . . . . . . . . . . . . find_fabricator 1 | . . . . . . . . . . . . . . . 1 . . . . . . . . . . . . . . . . drop_inventory 1 | . . . . . . . . . . . 1 . . . . . . . . . . . . . . . . . . . . ignore_parts 1 | . . . . . . . . . . . . . . . 1 . . . . . . . . . . . . . . . . purge_threat 2 | . . . . . . . . . . . . 2 . . . . . . . . . . . . . . . . . . . locate_traps 1 | . . . . . . . . . . . . 1 . . . . . . . . . . . . . . . . . . . find_shortcuts 1 | . . . . . . . . . . 1 . . . . . . . . . . . . . . . . . . . . . find_garrison 1 | . . . . . . . . . . . 1 . . . . . . . . . . . . . . . . . . . . reboot_system 2 | . . . . . . . . . . 1 . . . . . . . . . . . . 1 . . . . . . . . overwrite_iff 3 | . . . . . . . . . . . . . . . . . . . . . . 3 . . . . . . . . . formatsys_low 1 | . . . . . . . . . . . . 1 . . . . . . . . . . . . . . . . . . . formatsys_high 5 | . . . . . . . . . . 1 1 . . 3 . . . . . . . . . . . . . . . . . Relay Couplers Released 72 | . . . . . . . . 5 . 12 . 9 3 19 . . . . . 4 17 2 . . 1 . . . . . . Ejected 7 | . . . . . . . . . . . . . 3 . . . . . . 4 . . . . . . . . . . . Machine Destruction 65 | . . . . . . . . 5 . 12 . 9 . 19 . . . . . . 17 2 . . 1 . . . . . . Attached 14 | . . . . . . . . . . 1 2 1 . 3 2 . . . . . 2 2 . . 1 . . . . . . Fabnet Peak Effective % . | . . . . . . . . . . . . . . . . . . . . . . . . . . . . . . . . Robots Rewired 13 | . . . . . . . . 3 . 2 . . . 4 . . . . . . . . 4 . . . . . . . . Allies Hacked . | . . . . . . . . . . . . . . . . . . . . . . . . . . . . . . . . Hacks Repelled . | . . . . . . . . . . . . . . . . . . . . . . . . . . . . . . . . Allies | -11 -10 -10 -9 -9 -9 -8 -8 -8 -8 -8 -7 -7 -7 -7 -6 -6 -6 -6 -5 -5 -5 -4 -4 -4 -3 -3 -2 -2 -2 -1 -1 -------- Run | Yrd Mat Min Mat Min Exi Min Mat Gar Mat Gar Fac Gar Fac Gar Fac Low Low Dat Pro Fac Gar Fac Arm Lab Res DSF Res Qua Sec Acc Com Total Allies 70 | . . 2 . 1 . . . 3 . 3 5 2 . 7 . . . . . . . 7 4 . . . . 1 . 21 14 Largest Group 7 | . . 2 2 1 . . . 3 3 2 4 4 1 7 7 . . . . . . 4 4 2 2 2 . 1 . 7 6 Highest-Rated Group 234 | . . 54 51 31 . . . 15 15 62 80 80 26 220 220 . . . . . . 234 120 60 60 60 . 26 . 102 87 Highest-Rated Ally 64 | . . 31 28 31 . . . 5 5 31 32 32 26 32 32 . . . . . . 64 30 30 30 30 . 26 . 15 15 Total Orders 14 | . . . . . . . . . . 3 2 . . 7 . . . . . . . . . 2 . . . . . . . STAY 8 | . . . . . . . . . . 2 1 . . 4 . . . . . . . . . 1 . . . . . . . FOLLOW 6 | . . . . . . . . . . 1 1 . . 3 . . . . . . . . . 1 . . . . . . . Ally Attacks 156 | . . 8 10 . . . . . 9 19 4 29 . 3 12 . . . . . . 23 15 . . . . . . 24 . Total Damage 3394 | . . 80 147 . . . . . 54 412 63 356 . 22 372 . . . . . . 842 474 . . . . . . 572 . Kills 25 | . . 3 3 . . . . . 1 4 1 2 . . 4 . . . . . . 3 4 . . . . . . . . Allies Corrupted . | . . . . . . . . . . . . . . . . . . . . . . . . . . . . . . . . Allies Melted . | . . . . . . . . . . . . . . . . . . . . . . . . . . . . . . . . Intel | -11 -10 -10 -9 -9 -9 -8 -8 -8 -8 -8 -7 -7 -7 -7 -6 -6 -6 -6 -5 -5 -5 -4 -4 -4 -3 -3 -2 -2 -2 -1 -1 ------- Run | Yrd Mat Min Mat Min Exi Min Mat Gar Mat Gar Fac Gar Fac Gar Fac Low Low Dat Pro Fac Gar Fac Arm Lab Res DSF Res Qua Sec Acc Com Robot Analysis Total 139 | . 3 . 1 . . . 1 . . . . . . . . . . 134 . . . . . . . . . . . . . Derelict Logs Recovered 5 | . . . . 1 . . . . . . . . . . . 2 2 . . . . . . . . . . . . . . Drone Launches . | . . . . . . . . . . . . . . . . . . . . . . . . . . . . . . . . Drone Recoveries . | . . . . . . . . . . . . . . . . . . . . . . . . . . . . . . . . Exploration | -11 -10 -10 -9 -9 -9 -8 -8 -8 -8 -8 -7 -7 -7 -7 -6 -6 -6 -6 -5 -5 -5 -4 -4 -4 -3 -3 -2 -2 -2 -1 -1 ------------- Run | Yrd Mat Min Mat Min Exi Min Mat Gar Mat Gar Fac Gar Fac Gar Fac Low Low Dat Pro Fac Gar Fac Arm Lab Res DSF Res Qua Sec Acc Com Turns Passed 21949 | 118 835 470 1630 1496 487 566 981 615 94 1243 670 1364 368 1391 1047 1281 1408 735 463 466 878 713 519 421 113 36 179 188 493 141 540 Spaces Moved 14926 | 64 519 317 671 583 264 362 744 400 39 864 507 931 126 863 703 939 837 285 266 225 550 291 468 359 92 57 324 349 854 245 828 Core 153 | 16 . . . . . . . . . . . . . . . . . . . . . 7 37 . . . . . 93 . . Treads 1896 | . . . 122 583 152 . . . . . . . . . . . 369 285 266 118 . 1 . . . . . . . . . Legs 11167 | 48 519 317 549 . 112 362 744 400 39 864 507 931 126 863 703 939 468 . . 107 550 283 . . . . . . 663 245 828 Wheels . | . . . . . . . . . . . . . . . . . . . . . . . . . . . . . . . . Hover . | . . . . . . . . . . . . . . . . . . . . . . . . . . . . . . . . Flight 1710 | . . . . . . . . . . . . . . . . . . . . . . . 431 359 92 57 324 349 98 . . Fastest Speed 25 | 50 120 120 120 240 90 90 90 90 100 100 45 100 100 100 100 100 100 163 163 120 120 50 39 39 39 39 39 39 25 30 30 Average Speed 104 | 102 120 120 195 240 176 90 94 102 100 100 96 104 100 100 100 108 149 187 167 173 123 119 40 39 39 39 39 39 33 30 30 Slowest Speed 410 | 120 120 120 260 240 240 90 170 170 100 100 100 170 100 100 176 176 410 243 243 243 190 260 100 39 39 39 39 39 50 30 90 Overloaded Moves 55 | . . . . . . . . 2 . . 29 . . . . . . . . . . . . . . . . . 24 . . Propulsion Burnouts . | . . . . . . . . . . . . . . . . . . . . . . . . . . . . . . . . Robots Hopped 7 | . . . . . . . . . . . . . . . . . . . . . . . 1 . . 1 3 1 1 . . Cave-ins Triggered 3 | . . . . . . . . . . . . . . . . . . . . . . 1 2 . . . . . . . . Teleports 77 | . . . . . . . . . . . . . . . . . . . . . . . . 1 . . . . 35 9 32 Exploration Rate (%) 50 | 4 61 51 58 98 61 61 71 49 5 96 14 95 7 97 18 92 85 81 48 8 54 10 44 95 3 79 12 51 53 8 31 Regions Visited 31 Branch Regions 13 Pre-discovered Areas 31 | . . . . . 1 . . . . . . . . . . . . 30 . . . . . . . . . . . . . Known Exits Taken 15 | . 1 . 1 . . . 1 . 1 . 1 . 1 . 1 1 1 1 1 1 . 1 . . 1 . 1 . . . . Unknown Exits Taken 10 | 1 . 1 . 1 1 1 . . . . . . . . . . . . . . . . 1 1 . . . 1 1 1 . Scrap Searched 12 | . . . . 1 . 1 . . . . . . . . . 3 3 . 4 . . . . . . . . . . . . Spaces Dug 103 | . . 1 . . . . 7 3 6 2 3 2 . . . 3 4 1 1 . . 9 34 . . . 6 3 4 2 12 Terrain Destroyed 895 | 6 13 7 . . . 17 32 10 6 5 3 3 . 1 . 7 4 2 1 6 6 10 35 . . . 6 3 592 21 99 Melee 43 | . . . . . . . 2 . 6 2 3 2 . . . 3 4 1 . . . 4 7 . . . 6 3 . . . Projectile 164 | . . 1 . . . . 5 1 . 2 . . . 1 . 4 . 1 1 5 6 6 2 . . . . . 9 21 99 AOE 685 | 6 13 6 . . . 17 25 9 . . . . . . . . . . . . . . 26 . . . . . 583 . . Terrain Rammed . | . . . . . . . . . . . . . . . . . . . . . . . . . . . . . . . . Walls Destroyed . | . . . . . . . . . . . . . . . . . . . . . . . . . . . . . . . . Machines Disabled . | . . . . . . . . . . . . . . . . . . . . . . . . . . . . . . . . Actions | -11 -10 -10 -9 -9 -9 -8 -8 -8 -8 -8 -7 -7 -7 -7 -6 -6 -6 -6 -5 -5 -5 -4 -4 -4 -3 -3 -2 -2 -2 -1 -1 --------- Run | Yrd Mat Min Mat Min Exi Min Mat Gar Mat Gar Fac Gar Fac Gar Fac Low Low Dat Pro Fac Gar Fac Arm Lab Res DSF Res Qua Sec Acc Com Total 19538 | 99 654 382 909 634 281 588 942 512 81 1093 651 1160 367 1109 1005 1181 952 434 284 280 684 598 763 594 157 69 361 385 994 296 1039 Wait 2698 | 13 71 42 92 21 . 216 119 26 13 96 99 66 239 51 254 208 64 94 4 13 12 224 197 196 58 14 12 25 37 19 103 Move 14882 | 63 518 316 670 582 263 361 744 399 39 862 506 929 126 862 702 938 836 284 265 224 549 290 465 358 91 54 317 346 851 244 828 Hop 7 | . . . . . . . . . . . . . . . . . . . . . . . 1 . . 1 3 1 1 . . Pick Up 165 | 9 10 2 29 4 3 1 4 5 3 5 4 13 . 7 7 4 3 3 2 9 7 6 9 4 . . . 2 4 4 2 Fast Attach 118 | 1 2 . 12 . 2 . 5 1 1 4 1 7 . 2 7 1 3 . . 1 3 4 16 5 2 . 3 . 18 5 12 Attach 71 | 4 2 1 1 . . . 2 2 1 1 3 1 . 4 6 1 . 2 1 4 2 9 7 2 . . 2 . 9 3 1 Detach 45 | . . . 1 . . . 1 . . 1 2 3 . 3 4 2 . 1 . 2 . . 4 2 1 . 1 . 9 2 6 Swap 285 | . 3 7 17 2 5 2 14 9 9 16 16 30 2 19 4 10 17 9 8 9 37 20 4 . . . . . 1 5 10 Drop 188 | . 7 3 25 4 5 1 7 3 6 7 2 22 . 4 2 3 2 2 3 6 20 11 13 6 . . 1 2 7 5 9 Fire 572 | 8 40 11 35 21 . 7 33 42 2 41 10 47 . 39 16 3 19 5 1 12 29 27 12 . . . . . 35 9 68 Melee 217 | . . . 2 . 3 . 10 4 6 26 7 7 . 12 3 11 8 28 . . . 7 35 21 5 . 7 9 6 . . Ram . | . . . . . . . . . . . . . . . . . . . . . . . . . . . . . . . . Kick 4 | 1 1 . . . . . . . 1 . . . . . . . . . . . . . . . . . . . 1 . . Crush . | . . . . . . . . . . . . . . . . . . . . . . . . . . . . . . . . Escape Stasis 64 | . . . . . . . . 4 . 10 . 5 . 5 . . . . . . 10 . . . . . 15 . 15 . . Rewire 35 | . . . . . . . . 17 . 15 1 1 . 1 . . . . . . . . . . . . . . . . . Trap 44 | . . . 25 . . . . . . . . . . 13 . . . 6 . . . . . . . . . . . . . Miscellaneous 143 | . . . . . . . 3 . . 9 . 29 . 87 . . . . . . 15 . . . . . . . . . . Route ------- -11/Scrapyard -10/Materials (discovered 4 exits: *Mat x2 / *Min x2) -10/Mines -9/Materials (discovered 4 exits: *Mat x2 / *Min x2) -9/Mines (discovered 4 exits: *Mat x2 / *Exi / [*Zio]) -9/Exiles -8/Mines -8/Materials (discovered 6 exits: *Fac x3 / [*Sto x2] / Gar) -8/Garrison (discovered 3 exits: *Fac x2 / *Mat) -8/Materials -8/Garrison (discovered 3 exits: *Fac x3) -7/Factory (discovered 2 exits: [*Low] / Gar) -7/Garrison (discovered 3 exits: *Fac x3) -7/Factory -7/Garrison (discovered 3 exits: *Fac x3) -6/Factory (discovered 3 exits: *Fac / *Low x2) -6/Lower Caves -6/Lower Caves (discovered 2 exits: *Fac / *Dat) -6/Data Miner -5/Proximity Caves -5/Factory (discovered 2 exits: Upp / Gar) -5/Garrison -4/Factory -4/Armory (discovered 2 exits: Res / *Lab) -4/Lab -3/Research -3/DSF -2/Research (discovered 2 exits: *Qua x2) -2/Quarantine (discovered 2 exits: *Acc / *Sec) -2/Section 7 -1/Access -1/Command (discovered 1 exit: [Sur]) History --------- Turn | Location | Event 6 | -11/Scrapyard | Discovered new exit (range 15) 119 | -11/Scrapyard | Entered Materials 311 | -10/Materials | Discovered new exit (range 14) 326 | -10/Materials | Build established: Mutant 329 | -10/Materials | Identified exit to Mines 777 | -10/Materials | Core integrity fell below 50% 847 | -10/Materials | Discovered new exit (range 10) 954 | -10/Materials | Entered Mines 1050 | -10/Mines | Assembled infested the area 1055 | -10/Mines | Assisted by a Guerilla fighting off Assembled 1141 | -10/Mines | Core integrity fell below 20% 1373 | -10/Mines | Discovered new exit (range 15) 1424 | -10/Mines | Entered Materials 1424 | -9/Materials | Accompanied by 2 allies 1424 | -9/Materials | Evolved 2 slots: Utility x1, Weapon x1 1434 | -9/Materials | Led the pair of lost Derelicts to an unsafe place 1622 | -9/Materials | Discovered new exit (range 15) 1872 | -9/Materials | Build established: Scavenger-Skirmisher 1986 | -9/Materials | Discovered new exit (range 10) 2212 | -9/Materials | Discovered new exit (range 11) 2235 | -9/Materials | Identified exit to Mines 2444 | -9/Materials | Build established: Scavenger-Gunner 2541 | -9/Materials | Repaired Carbon-fiber Leg 3054 | -9/Materials | Entered Mines 3104 | -9/Mines | Build established: Gunner 3107 | -9/Mines | Received a Rocket Launcher from a helpful Derelict 3296 | -9/Mines | Deemed a non-threat by the Exiles lab entrance 3296 | -9/Mines | Discovered new exit (range 5) 3897 | -9/Mines | Discovered new exit (range 6) 4017 | -9/Mines | Learned 2 Materials zone layouts 4048 | -9/Mines | Discovered new exit (range 6) 4058 | -9/Mines | A Derelict revealed a hidden shortcut to a safe place 4128 | -9/Mines | A weapon hastily lodged in a ceiling crevice suddenly fell to the ground 4245 | -9/Mines | Escorted by a lone wolf Derelict 4291 | -9/Mines | Met a Derelict shopkeep closing up shop 4550 | -9/Mines | Entered Exiles 4550 | -9/Exiles | Accompanied by 1 ally 4606 | -9/Exiles | Met 8R-AWN 4657 | -9/Exiles | Met EX-HEX 4754 | -9/Exiles | Met EX-DEC 4766 | -9/Exiles | Learned location of Zion (-7) 4812 | -9/Exiles | Met EX-BIN 4845 | -9/Exiles | Aligned with FarCom system 4848 | -9/Exiles | Given EX-Vault access code 4905 | -9/Exiles | Opened EX-Vault 4917 | -9/Exiles | Build established: Mutant 4921 | -9/Exiles | Found Potential Leg 4924 | -9/Exiles | Found Potential Leg 4928 | -9/Exiles | Found Trap Reconfigurator 4935 | -9/Exiles | Found Cloak of Protection 4953 | -9/Exiles | Warned to stay clear of 0b10 Research branches 5029 | -9/Exiles | Discovered new exit (range 10) 5037 | -9/Exiles | Stole three prototypes: Potential Leg, Cloak of Protection, Trap Reconfigurator 5037 | -9/Exiles | Entered Mines 5251 | -8/Mines | Discovered new exit (range 13) 5343 | -8/Mines | Build established: Skirmisher 5603 | -8/Mines | Entered Materials 5603 | -8/Materials | Evolved 2 slots: Propulsion x1, Utility x1 5603 | -8/Materials | Discovered new exit (range 8) 5604 | -8/Materials | Identified exit to Factory 5656 | -8/Materials | Repaired Hvy. Assault Rifle 6147 | -8/Materials | Discovered exit to Factory (range 16) 6448 | -8/Materials | Discovered exit to Factory (range 15) 6494 | -8/Materials | Discovered new exit (range 15) 6584 | -8/Materials | Identified exit to Garrison 6584 | -8/Materials | Entered Garrison 6614 | -8/Garrison | Installed Relay Interface Framework 6689 | -8/Garrison | Triggered checkpoint 6808 | -8/Garrison | Garrison Relay disabled 6942 | -8/Garrison | Discovered exit to Factory (range 10) 7071 | -8/Garrison | Triggered checkpoint 7122 | -8/Garrison | Triggered checkpoint 7148 | -8/Garrison | Discovered exit to Factory (range 14) 7159 | -8/Garrison | Discovered new exit (range 5) 7199 | -8/Garrison | Entered Materials 7199 | -8/Materials | Accompanied by 3 allies 7292 | -8/Materials | Identified exit to Garrison 7293 | -8/Materials | Entered Garrison 7354 | -8/Garrison | Garrison Relay disabled 7370 | -8/Garrison | Garrison Relay disabled 7382 | -8/Garrison | Triggered checkpoint 7558 | -8/Garrison | Triggered checkpoint 7640 | -8/Garrison | Discovered exit to Factory (range 8) 7704 | -8/Garrison | Phase Generator disabled 7809 | -8/Garrison | Triggered checkpoint 7882 | -8/Garrison | Found Powered Armor 7885 | -8/Garrison | Found Powered Armor 7888 | -8/Garrison | Found Powered Armor 7982 | -8/Garrison | Triggered checkpoint 8039 | -8/Garrison | Discovered exit to Factory (range 15) 8248 | -8/Garrison | Triggered checkpoint 8301 | -8/Garrison | Discovered exit to Factory (range 9) 8384 | -8/Garrison | Expanded RIF knowledge: Zone Cloak 8448 | -8/Garrison | Garrison Relay disabled 8536 | -8/Garrison | Entered Factory 8536 | -7/Factory | Accompanied by 1 ally 8536 | -7/Factory | Evolved 2 slots: Propulsion x1, Utility x1 8538 | -7/Factory | FarCom data flow suspended 9138 | -7/Factory | Discovered new exit (range 15) 9154 | -7/Factory | Build established: Gunner 9169 | -7/Factory | Identified exit to Garrison 9206 | -7/Factory | Entered Garrison 9206 | -7/Garrison | Accompanied by 4 allies 9262 | -7/Garrison | Phase Generator disabled 9298 | -7/Garrison | Triggered checkpoint 9369 | -7/Garrison | Lost 4 allies 9442 | -7/Garrison | Heavy support dispatched to Factory 9472 | -7/Garrison | Triggered checkpoint 9489 | -7/Garrison | Garrison Relay disabled 9661 | -7/Garrison | Build established: Scavenger-Gunner 9772 | -7/Garrison | Triggered checkpoint 9892 | -7/Garrison | Discovered new exit (range 10) 10020 | -7/Garrison | Triggered checkpoint 10054 | -7/Garrison | Discovered new exit (range 15) 10141 | -7/Garrison | Rescued a captive Derelict 10150 | -7/Garrison | Triggered checkpoint 10259 | -7/Garrison | Discovered new exit (range 12) 10271 | -7/Garrison | Expanded RIF knowledge: Command Fork 10284 | -7/Garrison | Triggered checkpoint 10367 | -7/Garrison | H-XX Assembler disabled 10497 | -7/Garrison | Discovered new exit (range 52) 10497 | -7/Garrison | Discovered new exit (range 23) 10497 | -7/Garrison | Discovered new exit (range 43) 10532 | -7/Garrison | Garrison Relay disabled 10570 | -7/Garrison | Entered Factory 10570 | -7/Factory | Accompanied by 1 ally 10699 | -7/Factory | Identified exit to Garrison 10938 | -7/Factory | Entered Garrison 10938 | -7/Garrison | Accompanied by 1 ally 10984 | -7/Garrison | Learned Factory security intel 11038 | -7/Garrison | Triggered checkpoint 11080 | -7/Garrison | Garrison Relay disabled 11310 | -7/Garrison | Triggered checkpoint 11391 | -7/Garrison | Phase Generator disabled 11513 | -7/Garrison | Garrison Relay disabled 11528 | -7/Garrison | Discovered new exit (range 11) 11581 | -7/Garrison | Expanded RIF knowledge: Robot Detection 11684 | -7/Garrison | Triggered checkpoint 11719 | -7/Garrison | Discovered new exit (range 56) 11719 | -7/Garrison | Discovered new exit (range 12) 11719 | -7/Garrison | Discovered new exit (range 87) 11738 | -7/Garrison | Garrison Relay disabled 11912 | -7/Garrison | Garrison Relay disabled 11960 | -7/Garrison | Triggered checkpoint 12010 | -7/Garrison | Triggered checkpoint 12025 | -7/Garrison | Expanded RIF knowledge: Alert ID Control 12054 | -7/Garrison | Garrison Relay disabled 12218 | -7/Garrison | Triggered checkpoint 12329 | -7/Garrison | Entered Factory 12329 | -6/Factory | Accompanied by 7 allies 12329 | -6/Factory | Evolved 2 slots: Utility x2 12402 | -6/Factory | Build established: Bothacker-Mutant 12454 | -6/Factory | Lost 5 allies 12667 | -6/Factory | Garrison activated, responded to threat 12753 | -6/Factory | Identified exit to Lower Caves 13084 | -6/Factory | Repaired Gatling Laser 13124 | -6/Factory | Repaired Arm. Treads 13169 | -6/Factory | Repaired Imp. Cooling System 13225 | -6/Factory | Discovered new exit (range 5) 13376 | -6/Factory | Entered Lower Caves 13766 | -6/Lower Caves | Build established: Assassin 13768 | -6/Lower Caves | Spotted B-75 Beast 13833 | -6/Lower Caves | Encountered a Warlord checkpoint 13840 | -6/Lower Caves | Identified exit to Lower Caves 14512 | -6/Lower Caves | Attracted the attention of an 0b10 checkpoint 14657 | -6/Lower Caves | Entered another Lower Caves area 14735 | -6/Lower Caves | Discovered new exit (range 14) 14747 | -6/Lower Caves | Identified exit to Factory 14806 | -6/Lower Caves | Learned 4 Factory zone layouts 14842 | -6/Lower Caves | Build established: Scavenger-Skirmisher 15074 | -6/Lower Caves | Learned Factory non-interactive machine intel 15192 | -6/Lower Caves | Spotted I1-HT3(f) 15193 | -6/Lower Caves | Spotted K0-2QX(f) 15194 | -6/Lower Caves | Encountered a Master Thief 15194 | -6/Lower Caves | Encountered a Master Thief 15194 | -6/Lower Caves | Encountered a Master Thief 15196 | -6/Lower Caves | Trap Reconfigurator stolen by Master Thief 15198 | -6/Lower Caves | Potential Leg stolen by Master Thief 15209 | -6/Lower Caves | Potential Leg stolen by Master Thief 15798 | -6/Lower Caves | Build established: Scavenger-Mutant 15989 | -6/Lower Caves | Discovered new exit (range 13) 16064 | -6/Lower Caves | Identified exit to Data Miner 16065 | -6/Lower Caves | Entered Data Miner 16066 | -6/Data Miner | Discovered new exit (range 6) 16081 | -6/Data Miner | Identified exit to Proximity Caves 16106 | -6/Data Miner | Met Data Miner 16137 | -6/Data Miner | Learned location of Section 7 (-2) 16137 | -6/Data Miner | Acquired the access code to Warlord's prototype stash 16159 | -6/Data Miner | Received God Mode back door access code from Data Miner 16356 | -6/Data Miner | Interfaced with the Data Conduit 16800 | -6/Data Miner | Entered Proximity Caves 17089 | -5/Proximity Caves | Build established: Scavenger-Skirmisher 17109 | -5/Proximity Caves | Spotted B-75 Beast 17238 | -5/Proximity Caves | Discovered exit to Factory (range 7) 17261 | -5/Proximity Caves | System corruption reached 10% 17263 | -5/Proximity Caves | Entered Factory 17263 | -5/Factory | Evolved 2 slots: Propulsion x1, Weapon x1 17264 | -5/Factory | Identified exit to Upper Caves 17266 | -5/Factory | Loaded intel: 233 machine locations 17267 | -5/Factory | Loaded intel: 180 non-interactive machine locations 17711 | -5/Factory | Identified exit to Garrison 17729 | -5/Factory | Entered Garrison 17730 | -5/Garrison | Loaded intel: 34 machine locations 17892 | -5/Garrison | Garrison Relay disabled 18031 | -5/Garrison | Destroyed 7 combat bots 18068 | -5/Garrison | Build established: Scavenger-Gunner 18084 | -5/Garrison | Triggered checkpoint 18175 | -5/Garrison | Phase Generator disabled 18191 | -5/Garrison | Discovered new exit (range 7) 18198 | -5/Garrison | Identified exit to Factory 18218 | -5/Garrison | Triggered checkpoint 18292 | -5/Garrison | Expanded RIF knowledge: Threat Obfuscation 18325 | -5/Garrison | Garrison Relay disabled 18495 | -5/Garrison | Garrison Relay disabled 18505 | -5/Garrison | Garrison Relay disabled 18607 | -5/Garrison | Entered Factory 18607 | -4/Factory | Evolved 2 slots: Propulsion x1, Utility x1 18608 | -4/Factory | Loaded intel: 316 machine locations 19248 | -4/Factory | Crushed by falling debris 19256 | -4/Factory | Discovered new exit (range 9) 19303 | -4/Factory | Lost 3 allies 19307 | -4/Factory | System corruption reached 10% 19320 | -4/Factory | Identified exit to Armory 19320 | -4/Factory | Entered Armory 19321 | -4/Armory | Loaded intel: 58 machine locations 19333 | -4/Armory | Found Fusion Bomb Launcher 19348 | -4/Armory | Lost 23 parts (2p6n7u8w) 19476 | -4/Armory | Crushed by falling debris 19482 | -4/Armory | Crushed by falling debris 19513 | -4/Armory | Lost 3 parts (2u1w) 19582 | -4/Armory | Build established: Mutant 19670 | -4/Armory | Discovered new exit (range 4) 19734 | -4/Armory | Discovered new exit (range 8) 19763 | -4/Armory | Found Enh. Force Lance 19765 | -4/Armory | Found Enh. Force Lance 19767 | -4/Armory | Found Enh. Force Lance 19839 | -4/Armory | Entered Lab 19839 | -4/Lab | Accompanied by 2 allies 19839 | -4/Lab | Discovered new exit (range 9) 19844 | -4/Lab | Hidden lab's door opened automatically 19844 | -4/Lab | Sensor layout match revealed 19882 | -4/Lab | Gained access to the hidden lab's interior 19892 | -4/Lab | Found Alien Artifact 19892 | -4/Lab | Identified Transdimensional Reconstructor 19892 | -4/Lab | Warped through subspace 19895 | -4/Lab | Decrypted terminal 19895 | -4/Lab | Acquired modification code for an L2 power cell 19901 | -4/Lab | Found Prototype Special Weapon 19901 | -4/Lab | Identified Gui. Remote Datajack 19927 | -4/Lab | Found Alien Artifact 19927 | -4/Lab | Identified Core Expander 19927 | -4/Lab | Installed Core Expander, added new Propulsion slot 19934 | -4/Lab | Found Alien Artifact 19934 | -4/Lab | Identified Integrated Dissipator 19934 | -4/Lab | Installed Integrated Dissipator, increased core heat dissipation (+20) 20066 | -4/Lab | Found Prototype Energy Gun 20071 | -4/Lab | Identified Tachyon Dispersion Ray 20172 | -4/Lab | Found Prototype Protection 20178 | -4/Lab | Found Prototype Energy Cannon 20178 | -4/Lab | Identified Potential Cannon 20180 | -4/Lab | Identified Med. Regenerative Plating 20182 | -4/Lab | Found Prototype Hackware 20221 | -4/Lab | Found Alien Artifact 20260 | -4/Lab | Entered Research 20260 | -3/Research | Accompanied by 2 allies 20260 | -3/Research | Evolved 2 slots: Power x1, Utility x1 20261 | -3/Research | Loaded intel: 105 machine locations 20263 | -3/Research | Identified Quantum Router 20361 | -3/Research | Identified exit to DSF 20373 | -3/Research | Entered DSF 20373 | -3/DSF | Accompanied by 2 allies 20374 | -3/DSF | Loaded intel: 2 machine locations 20404 | -3/DSF | Discovered new exit (range 14) 20405 | -3/DSF | Additional patrols routed to DSF 20409 | -3/DSF | Entered Research 20409 | -2/Research | Evolved 2 slots: Utility x2 20410 | -2/Research | Loaded intel: 129 machine locations 20418 | -2/Research | Identified exit to Quarantine 20588 | -2/Research | Entered Quarantine 20589 | -2/Quarantine | Loaded intel: 78 machine locations 20616 | -2/Quarantine | Discovered new exit (range 15) 20617 | -2/Quarantine | Spotted Alpha 7 20624 | -2/Quarantine | Found Alien Launcher 20653 | -2/Quarantine | Cryocooling Duct disabled 20668 | -2/Quarantine | Ambient heat levels rising (+20) 20668 | -2/Quarantine | Non-combat units ordered to evacuate 20714 | -2/Quarantine | Build established: Hacker-Mutant 20723 | -2/Quarantine | Found Alien Artifact 20745 | -2/Quarantine | Spotted Fortress 20774 | -2/Quarantine | Discovered new exit (range 6) 20776 | -2/Quarantine | Entered Section 7 20777 | -2/Section 7 | Loaded intel: 140 machine locations 20780 | -2/Section 7 | Spotted S7 Guard 20781 | -2/Section 7 | Identified Hpw. Transdimensional Reconstructor 20781 | -2/Section 7 | Warped through subspace 20785 | -2/Section 7 | Identified Core Reset Matrix 20785 | -2/Section 7 | Identified Sigix Terminator 20785 | -2/Section 7 | Used Core Reset Matrix 20786 | -2/Section 7 | Discovered new exit (range 11) 20789 | -2/Section 7 | Sensed 21 artifacts in vicinity 20803 | -2/Section 7 | Spotted B-90 Cyclops 20805 | -2/Section 7 | Fired Sigix Terminator 20805 | -2/Section 7 | Spotted S7 Guard 20805 | -2/Section 7 | Destroyed B-90 Cyclops 20815 | -2/Section 7 | Found Navigation Efficiency Matrix 20815 | -2/Section 7 | Installed Navigation Efficiency Matrix, process failed with unexpected side effects 20826 | -2/Section 7 | Destroyed 8 combat bots 20830 | -2/Section 7 | Spotted Executioner 20830 | -2/Section 7 | Spotted Executioner 20841 | -2/Section 7 | Core integrity fell below 50% 20871 | -2/Section 7 | Lost 7 parts (4n3u) 20879 | -2/Section 7 | Spotted Executioner 20890 | -2/Section 7 | Integrated with Sigix Exoskeleton 20913 | -2/Section 7 | Spotted B-99 Colossus 20930 | -2/Section 7 | Scanned by Researcher 20940 | -2/Section 7 | Found Core Expander 20940 | -2/Section 7 | Installed Core Expander, added new Power slot 20942 | -2/Section 7 | Found Core Expander 20942 | -2/Section 7 | Installed Core Expander, added new Power slot 20944 | -2/Section 7 | Found Core Expander 20944 | -2/Section 7 | Installed Core Expander, added new Utility slot 20968 | -2/Section 7 | Found LRC Storage 20968 | -2/Section 7 | Installed LRC Storage, increased inventory capacity (+2) 20969 | -2/Section 7 | Found LRC Armor 20969 | -2/Section 7 | Installed LRC Armor, increased core integrity (+250) 21070 | -2/Section 7 | First assault squad dispatched 21088 | -2/Section 7 | Found Transdimensional Reconstructor 21090 | -2/Section 7 | Found Transdimensional Reconstructor 21103 | -2/Section 7 | Found Matter Drive 21110 | -2/Section 7 | Intercept squad dispatched 21124 | -2/Section 7 | Spotted Tracker 21129 | -2/Section 7 | Spotted Tracker 21131 | -2/Section 7 | Spotted Striker 21131 | -2/Section 7 | Spotted Striker 21139 | -2/Section 7 | Destroyed Tracker 21145 | -2/Section 7 | Found Prototype Processor 21145 | -2/Section 7 | Identified Exp. Targeting Computer 21157 | -2/Section 7 | Destroyed Striker 21166 | -2/Section 7 | Destroyed Striker 21169 | -2/Section 7 | Sigix Exoskeleton integrity reduced to 80% 21169 | -2/Section 7 | Destroyed Tracker 21181 | -2/Section 7 | Found Prototype Device 21181 | -2/Section 7 | Identified Exp. Phase Shifter 21208 | -2/Section 7 | Found Sigix Sheargun 21209 | -2/Section 7 | Found Sigix Sheargun 21213 | -2/Section 7 | Build established: Alien-Sigix 21222 | -2/Section 7 | Spotted Combat Programmer 21226 | -2/Section 7 | Spotted Combat Programmer 21236 | -2/Section 7 | Warped through subspace 21241 | -2/Section 7 | Spotted Investigator 21244 | -2/Section 7 | Warped through subspace 21248 | -2/Section 7 | Spotted Executioner 21248 | -2/Section 7 | Spotted Striker 21269 | -2/Section 7 | Entered Access 21269 | -1/Access | Evolved 2 slots: Weapon x2 21274 | -1/Access | Emitted hypermatrix ping 21279 | -1/Access | Assembled emerged from beneath the floor 21323 | -1/Access | Lost 6 allies 21328 | -1/Access | Assembled emerged from beneath the floor 21365 | -1/Access | Spotted B-99 Colossus 21367 | -1/Access | Assembled emerged from beneath the floor 21404 | -1/Access | Discovered new exit (range 18) 21405 | -1/Access | Lost 6 allies 21406 | -1/Access | Spotted B-99 Colossus 21406 | -1/Access | Spotted B-99 Colossus 21410 | -1/Access | Entered Command 21415 | -1/Command | Emitted hypermatrix ping 21420 | -1/Command | Assembled emerged from beneath the floor 21511 | -1/Command | Sigix Exoskeleton integrity reduced to 60% 21554 | -1/Command | Assembled emerged from beneath the floor 21623 | -1/Command | Spotted Combat Programmer 21630 | -1/Command | Spotted Combat Programmer 21634 | -1/Command | Spotted M Guard 21634 | -1/Command | Spotted M Guard 21640 | -1/Command | Destroyed Combat Programmer 21658 | -1/Command | Destroyed Combat Programmer 21711 | -1/Command | Destroyed M Guard 21716 | -1/Command | Sigix Exoskeleton integrity reduced to 40% 21717 | -1/Command | Destroyed M Guard 21717 | -1/Command | All MAIN.C guards destroyed 21722 | -1/Command | Found Prototype Reactor 21722 | -1/Command | Identified Zero-point Reactor 21735 | -1/Command | Found Prototype Device 21735 | -1/Command | Identified Thermal Barrier 21746 | -1/Command | Found Zero-point Reactor 21753 | -1/Command | Found Prototype Launcher 21753 | -1/Command | Identified Hellfire Missile Launcher 21760 | -1/Command | Discovered new exit (range 18) 21904 | -1/Command | Met MAIN.C 21909 | -1/Command | 0b10 Conduit disabled 21933 | -1/Command | MAIN.C's shell transforms into a squad of autonomous robots 21933 | -1/Command | Destroyed MAIN.C Shell 21933 | -1/Command | Spotted M Shell/Def 21933 | -1/Command | Spotted M Shell/Atk 21933 | -1/Command | Spotted M Shell/Def 21933 | -1/Command | Spotted M Shell/Atk 21933 | -1/Command | Spotted M Shell/Atk 21933 | -1/Command | Spotted M Shell/Def 21933 | -1/Command | Spotted M Shell/Atk 21933 | -1/Command | Spotted M Shell/Def 21935 | -1/Command | MAIN.C activated Command garrisons 21938 | -1/Command | Sigix Exoskeleton integrity reduced to 20% 21941 | -1/Command | Core integrity fell below 50% 21950 | -1/Command | Exoskeleton Destroyed Last Messages --------------- MAIN.C's core emerges from the shell as its internal framework transforms into a squad of autonomous robots. 21933_ Quantum Shear penetrates M Shell/Def. 21933_ Quantum Shear penetrates 0b10 Conduit. 21934_ Knocked back. MAIN.C: As soon as the Exoskeleton activated, I had a feeling you might show up here for revenge. That was plenty of time to prepare a more suitable shell to welcome you... 21935_ ALERT: All Command garrisons activated. 21935_ Hellfire Missile intercepted. 21935_ Quantum Shear penetrates MAIN.C. 21935_ Quantum Shear penetrates 0b10 Conduit. 21935_ Quantum Shear penetrates MAIN.C. 21938_ Exo-853F: "Integrity reduced to 20%, immediate ERK application recommended to prevent critical system failure." 21938_ Quantum Shear penetrates 0b10 Conduit. 21945_ Acquired 18 matter. 21945_ Quantum Shear penetrates MAIN.C. 21950_ Quantum Shear penetrates 0b10 Conduit. 21950_ Sigix Exoskeleton destroyed. Map ----- +----------------------------------------------------+ | ????????????????????############################## | | ???????????????????############################### | | ???????????????????############################### | | ???????????????????############################### | | ????????????????################################## | | ?????????????##################################### | | ????????????####""""""" """" ############# | | ?????????? #####"" "" ############# | | ????????? #####""""" "" ############# | | ???????? #####""""""""""" " | | ?????? #####" " """ " | | ????? #####"" """""" / | | ???? #####"" """"" ############# | | ??? ##### " """ ############# | | ?? ##### " ############# | | ?? !!= ##### " ! "############# | | ?# !!= ##### "" ii % " "############# | | # != ##### """""############# | | # ##### """""############# | | ############### Y " ############# | | = ######### i $ " " ############# | | """ Y """" " ############# | | """ % i " " """" ############# | | """ YY " " " ############# | | ## ######### % """" " ############# | | ### ########### M X" """"""""############# | | !# ###########% % " " " " ############# | | # ############################################# | | # ############################################# | | # ############################################# | | # ############################################# | | # ####################################????##### | | +## ####################################?????#### | | ####################################???????## | | ? ###################################?????????# | | ?? ##################################??????????? | | ?? ##################################??????????? | | ??? #################################???????????? | | ???? ################################????????????? | | ?????###############################?????????????? | | ??????############################???????????????? | | ????????#########################????????????????? | | ?????????######################??????????????????? | | ????????????################?????????????????????? | | ????????????????? ?####??????????????????????????? | | ?????????????????????????????????????????????????? | | ?????????????????????????????????????????????????? | | ?????????????????????????????????????????????????? | | ?????????????????????????????????????????????????? | | ?????????????????????????????????????????????????? | +----------------------------------------------------+ Best States ------------- Heat Dissipation 185 Coolant Potential 120 Energy Generation 94 Energy Capacity 940 Matter Stores 300 Matter Capacity 300 Sight Range 16 Robot Scan Range 15 Terrain Scan Range 20 Terrain Scan Density 210 Jamming Range 16 Cloak Strength 5 Corruption Containment 12 Corruption Block 19 Armor Coverage 400 Resistance: KI 50 Resistance: TH 50 Resistance: EX 50 Resistance: EM 50 Resistance: I 50 Resistance: S 50 Resistance: P 50 Weapon Cycling 30 Phase Shifting 20 Evasion (%) 96 Targeting Accuracy 32 Target Analysis 8 Recoil Reduction 4 Kinecelleration 40 Offensive Hacking 10 Defensive Hacking 25 Relay Coupler Types 3 Relay Coupler Value 85 Trap Extractor Capacity 6 Item Schematics ----------------- Hvy. Tesla Rifle | -2/Section 7 | Archive Exp. Biometal Heavy Treads | -2/Section 7 | Archive Helical Railgun | -2/Section 7 | Archive Robot Schematics ------------------ None Fabricated ------------ Nothing Alien Tech Used ----------------- Transdimensional Reconstructor Core Expander Integrated Dissipator High-powered Transdimensional Reconstructor Core Reset Matrix Sigix Terminator Navigation Efficiency Matrix Sigix Exoskeleton Sigix Sheargun LRC Storage LRC Armor Matter Drive Achievements -------------- None Challenges ------------ None Game ------ Seed TiamatMicrowarpTorch Manual? 0 Play Time 04:17:08 Cumulative 399.5 hours Start 2024.01.08 @ 18:34:27 End 2024.01.08 @ 23:12:41 Sessions 1 Manual Loads 0 Difficulty Rogue Special Mode None Game No. 143 Rogue 128 Adventurer 15 Explorer 0 Win Type - Total 25 Types 7/1/7/2/2/0/4/1/1 Lore% 87 Gallery% 89 Achievement% 83 Wizard Run 0 Options --------- ASCII 0 Keyboard 0 Movement Numpad Keybinds 0 Fullscreen 1 Font 18/SmallcapsGlow Map View 76x50 Zoom Use 0% Tactical HUD 1 Map Filters NONE Filters NONE Steam 1 RUN: 86ee0db0-b1ab-43a5-a20b-a15a76d24020